fUST/lending_fUST_20250208
["ID","MTS","AMOUNT","RATE_DAILY","PERIOD"]
[352209953,1738998666402,-1543.63,0.00011643,2]
[352209954,1738998666412,-500.0,0.00011643,2]
[352209955,1738998666421,-500.0,0.00011643,2]
[352209956,1738998666432,-1147.48,0.00011643,2]
[352209957,1738998666442,-679.14,0.00011643,2]
[352209958,1738998666452,-500.0,0.00011643,2]
[352209959,1738998666463,-500.0,0.00011643,2]
[352209960,1738998666479,-823.63,0.00011643,2]
[352209961,1738998666489,-500.0,0.00011643,2]
[352209962,1738998666499,-200.19247976,0.00011643,2]
[352209963,1738998666508,-500.0,0.00011643,2]
[352209964,1738998666518,-500.0,0.00011643,2]
[352209965,1738998666528,-500.0,0.00011643,2]
[352209966,1738998666538,-500.0,0.00011643,2]
[352209967,1738998666549,-500.0,0.00011643,2]
[352209968,1738998666567,-519.12,0.00011643,2]
[352209969,1738998666576,-500.0,0.00011643,2]
[352209970,1738998666586,-1168.36,0.00011643,2]
[352209971,1738998666595,-465.84307757,0.00011645,2]
[352209972,1738998666607,-432.08392,0.00011779,2]
[352209973,1738998666622,-432.08392,0.00011779,2]
[352209974,1738998666633,-448.31046433,0.00011779,2]
[352209975,1738998666644,-151.0,0.0001178,2]
[352209976,1738998666653,-151.0,0.0001178,2]
[352209977,1738998666663,-151.0,0.0001178,2]
[352209978,1738998666672,-151.0,0.0001178,2]
[352209979,1738998666682,-151.0,0.0001178,2]
[352209980,1738998666692,-151.0,0.0001178,2]
[352209981,1738998666702,-151.0,0.0001178,2]
[352209982,1738998666711,-151.0,0.0001178,2]
[352209983,1738998666722,-291.316255,0.0001178,2]
[352209984,1738998666732,-318.736898,0.0001178,2]
[352209985,1738998666742,-318.736898,0.0001178,2]
[352209986,1738998666752,-151.0,0.0001178,2]
[352209987,1738998666762,-500.0,0.0001178,2]
[352209988,1738998666772,-500.0,0.0001178,2]
[352209989,1738998666781,-528.58042909,0.0001178,2]
[352209990,1738998666790,-500.0,0.0001178,2]
[352209991,1738998666800,-500.0,0.0001178,2]
[352209992,1738998666810,-392.26801688,0.0001178,2]
[352209993,1738998666819,-545.88,0.0001178,2]
[352209994,1738998666829,-500.0,0.0001178,2]
[352209995,1738998666839,-500.0,0.0001178,2]
[352209996,1738998666848,-500.0,0.0001178,2]
[352209997,1738998666857,-500.0,0.0001178,2]
[352209998,1738998666867,-151.0,0.0001178,2]
[352209999,1738998666876,-500.0,0.0001178,2]
[352210000,1738998666885,-151.0,0.0001178,2]
[352210001,1738998666894,-500.0,0.0001178,2]
[352210002,1738998666904,-500.0,0.0001178,2]
[352210003,1738998666914,-513.05805258,0.0001178,2]
[352210004,1738998666924,-151.0,0.0001178,2]
[352210005,1738998666934,-500.0,0.0001178,2]
[352210006,1738998666944,-500.0,0.0001178,2]
[352210007,1738998666954,-500.0,0.0001178,2]
[352210008,1738998666964,-500.0,0.0001178,2]
[352210009,1738998666974,-500.0,0.0001178,2]
[352210010,1738998666983,-460.0,0.0001178,2]
[352210011,1738998666992,-500.0,0.0001178,2]
[352210012,1738998667001,-701.06,0.0001178,2]
[352210013,1738998667011,-258.179318,0.0001178,2]
[352210014,1738998667020,-565.21,0.0001178,2]
[352210015,1738998667030,-258.179318,0.0001178,2]
[352210016,1738998667040,-588.54,0.0001178,2]
[352210017,1738998667049,-500.0,0.0001178,2]
[352210018,1738998667059,-500.0,0.0001178,2]
[352210019,1738998667068,-500.0,0.0001178,2]
[352210020,1738998667077,-500.0,0.0001178,2]
[352210021,1738998667086,-500.0,0.0001178,2]
[352210022,1738998667095,-500.0,0.0001178,2]
[352210023,1738998667105,-500.0,0.0001178,2]
[352210024,1738998667115,-500.0,0.0001178,2]
[352210025,1738998667125,-500.0,0.0001178,2]
[352210026,1738998667134,-500.0,0.0001178,2]
[352210027,1738998667144,-500.0,0.0001178,2]
[352210028,1738998667153,-500.0,0.0001178,2]
[352210029,1738998667163,-500.0,0.0001178,2]
[352210030,1738998667173,-889.61,0.0001178,2]
[352210031,1738998667182,-191.717064,0.0001178,2]
[352210032,1738998667192,-191.717064,0.0001178,2]
[352210033,1738998667202,-500.0,0.0001178,2]
[352210034,1738998667211,-500.0,0.0001178,2]
[352210035,1738998667221,-503.18202209,0.0001178,2]
[352210036,1738998667231,-216.220034,0.0001178,2]
[352210037,1738998667242,-989.96,0.0001178,2]
[352210038,1738998667252,-500.0,0.0001178,2]
[352210039,1738998667263,-216.220034,0.0001178,2]
[352210040,1738998667273,-500.0,0.0001178,2]
[352210041,1738998667283,-500.0,0.0001178,2]
[352210042,1738998667293,-500.0,0.0001178,2]
[352210043,1738998667304,-413.58964998,0.0001178,2]
[352210044,1738998667315,-500.0,0.0001178,2]
[352210045,1738998667325,-558.33,0.0001178,2]
[352210046,1738998667334,-500.0,0.0001178,2]
[352210047,1738998667345,-650.2,0.0001178,2]
[352210048,1738998667354,-500.0,0.0001178,2]
[352210049,1738998667364,-500.0,0.0001178,2]
[352210050,1738998667474,-500.0,0.0001178,2]
[352210051,1738998667484,-596.97,0.0001178,2]
[352210052,1738998667494,-500.0,0.0001178,2]
[352210053,1738998667504,-786.31,0.0001178,2]
[352210054,1738998667515,-500.0,0.0001178,2]
[352210055,1738998667526,-500.0,0.0001178,2]
[352210056,1738998667536,-500.0,0.0001178,2]
[352210057,1738998667547,-500.0,0.0001178,2]
[352210058,1738998667561,-500.0,0.0001178,2]
[352210059,1738998667572,-500.0,0.0001178,2]
[352210060,1738998667582,-500.0,0.0001178,2]
[352210061,1738998667593,-500.0,0.0001178,2]
[352210062,1738998667602,-500.0,0.0001178,2]
[352210063,1738998667611,-500.0,0.0001178,2]
[352210064,1738998667621,-1060.7,0.0001178,2]
[352210065,1738998667631,-500.0,0.0001178,2]
[352210066,1738998667641,-500.0,0.0001178,2]
[352210067,1738998667650,-500.0,0.0001178,2]
[352210068,1738998667660,-500.0,0.0001178,2]
[352210069,1738998667670,-500.0,0.0001178,2]
[352210070,1738998667679,-500.0,0.0001178,2]
[352210071,1738998667690,-500.0,0.0001178,2]
[352210072,1738998667700,-500.0,0.0001178,2]
[352210073,1738998667710,-271.57866903,0.0001178,2]
[352210074,1738998667720,-1453.12,0.0001178,2]
[352210075,1738998667729,-504.19583548,0.0001178,2]
[352210076,1738998667739,-1481.07,0.0001178,2]
[352210077,1738998667749,-500.0,0.0001178,2]
[352210078,1738998667758,-500.0,0.0001178,2]
[352210079,1738998667768,-500.0,0.0001178,2]
[352210080,1738998667777,-671.1,0.0001178,2]
[352210081,1738998667786,-151.0,0.0001178,2]
[352210082,1738998667796,-500.0,0.0001178,2]
[352210083,1738998667806,-500.0,0.0001178,2]
[352210084,1738998667815,-500.0,0.0001178,2]
[352210085,1738998667825,-3685.92,0.0001178,2]
[352210086,1738998667835,-500.0,0.0001178,2]
[352210087,1738998667844,-836.94,0.0001178,2]
[352210088,1738998667854,-500.0,0.0001178,2]
[352210089,1738998667863,-711.76,0.0001178,2]
[352210090,1738998667872,-500.0,0.0001178,2]
[352210091,1738998667882,-500.0,0.0001178,2]
[352210092,1738998667892,-500.0,0.0001178,2]
[352210093,1738998667902,-1198.7,0.0001178,2]
[352210094,1738998667911,-355.503338,0.0001178,2]
[352210095,1738998667921,-151.0,0.0001178,2]
[352210096,1738998667932,-500.0,0.0001178,2]
[352210097,1738998667941,-355.503338,0.0001178,2]
[352210098,1738998667952,-500.0,0.0001178,2]
[352210099,1738998667962,-763.76,0.0001178,2]
[352210100,1738998667972,-500.0,0.0001178,2]
[352210101,1738998667982,-500.0,0.0001178,2]
[352210102,1738998667991,-988.05,0.0001178,2]
[352210103,1738998668001,-500.0,0.0001178,2]
[352210104,1738998668011,-503.9853436,0.0001178,2]
[352210105,1738998668020,-500.0,0.0001178,2]
[352210106,1738998668029,-500.0,0.0001178,2]
[352210107,1738998668039,-1433.84,0.0001178,2]
[352210108,1738998668049,-500.0,0.0001178,2]
[352210109,1738998668059,-1643.7,0.0001178,2]
[352210110,1738998668068,-500.0,0.0001178,2]
[352210111,1738998668078,-3044.6,0.0001178,2]
[352210112,1738998668088,-500.0,0.0001178,2]
[352210113,1738998668098,-210.1845,0.0001178,2]
[352210114,1738998668108,-500.0,0.0001178,2]
[352210115,1738998668118,-500.0,0.0001178,2]
[352210116,1738998668128,-765.74,0.0001178,2]
[352210117,1738998668138,-500.0,0.0001178,2]
[352210118,1738998668148,-500.0,0.0001178,2]
[352210119,1738998668158,-500.0,0.0001178,2]
[352210120,1738998668168,-500.0,0.0001178,2]
[352210121,1738998668177,-503.38356112,0.0001178,2]
[352210122,1738998668189,-572.08710205,0.0001178,2]
[352210123,1738998668199,-715.96,0.0001178,2]
[352210124,1738998668210,-500.0,0.0001178,2]
[352210125,1738998668220,-2515.96,0.0001178,2]
[352210126,1738998668230,-719.68,0.0001178,2]
[352210127,1738998668240,-500.0,0.0001178,2]
[352210128,1738998668251,-500.0,0.0001178,2]
[352210129,1738998668262,-9981.38,0.0001178,2]
[352210130,1738998668273,-500.0,0.0001178,2]
[352210131,1738998668283,-500.0,0.0001178,2]
[352210132,1738998668294,-1315.18,0.0001178,2]
[352210133,1738998668305,-500.0,0.0001178,2]
[352210134,1738998668316,-1179.31,0.0001178,2]
[352210135,1738998668326,-660.77,0.0001178,2]
[352210136,1738998668335,-2961.48,0.0001178,2]
[352210137,1738998668345,-500.0,0.0001178,2]
[352210138,1738998668355,-500.0,0.0001178,2]
[352210139,1738998668364,-500.0,0.0001178,2]
[352210140,1738998668373,-500.0,0.0001178,2]
[352210141,1738998668383,-1189.1,0.0001178,2]
[352210142,1738998668392,-2548.81,0.0001178,2]
[352210143,1738998668401,-500.0,0.0001178,2]
[352210144,1738998668411,-48466.56,0.0001178,2]
[352210145,1738998668420,-3739.97,0.0001178,2]
[352210146,1738998668429,-500.0,0.0001178,2]
[352210147,1738998668442,-500.0,0.0001178,2]
[352210148,1738998668452,-631.77,0.0001178,2]
[352210149,1738998668461,-500.0,0.0001178,2]
[352210150,1738998668471,-1998.71,0.0001178,2]
[352210151,1738998668480,-500.0,0.0001178,2]
[352210152,1738998668490,-500.0,0.0001178,2]
[352210153,1738998668500,-500.0,0.0001178,2]
[352210154,1738998668510,-500.0,0.0001178,2]
[352210155,1738998668520,-500.0,0.0001178,2]
[352210156,1738998668529,-500.0,0.0001178,2]
[352210157,1738998668538,-1597.12,0.0001178,2]
[352210158,1738998668549,-1175.25,0.0001178,2]
[352210159,1738998668561,-500.0,0.0001178,2]
[352210160,1738998668571,-500.0,0.0001178,2]
[352210161,1738998668580,-14657.02,0.0001178,2]
[352210162,1738998668590,-500.0,0.0001178,2]
[352210163,1738998668599,-3257.55,0.0001178,2]
[352210164,1738998668609,-500.0,0.0001178,2]
[352210165,1738998668618,-500.0,0.0001178,2]
[352210166,1738998668628,-500.0,0.0001178,2]
[352210167,1738998668637,-500.0,0.0001178,2]
[352210168,1738998668646,-500.0,0.0001178,2]
[352210169,1738998668655,-500.0,0.0001178,2]
[352210170,1738998668664,-500.0,0.0001178,2]
[352210171,1738998668674,-500.0,0.0001178,2]
[352210172,1738998668687,-1592.16,0.0001178,2]
[352210173,1738998668696,-2064.54,0.0001178,2]
[352210174,1738998668705,-981.26,0.0001178,2]
[352210175,1738998668715,-796.91,0.0001178,2]
[352210176,1738998668724,-443.759213,0.0001178,2]
[352210177,1738998668733,-1457.93,0.0001178,2]
[352210178,1738998668742,-505.96156691,0.0001178,2]
[352210179,1738998668751,-443.759213,0.0001178,2]
[352210180,1738998668761,-500.0,0.0001178,2]
[352210181,1738998668770,-500.0,0.0001178,2]
[352210182,1738998668779,-500.0,0.0001178,2]
[352210183,1738998668789,-500.0,0.0001178,2]
[352210184,1738998668799,-180.346694,0.0001178,2]
[352210185,1738998668808,-500.0,0.0001178,2]
[352210186,1738998668818,-2789.96,0.0001178,2]
[352210187,1738998668827,-500.0,0.0001178,2]
[352210188,1738998668837,-6219.57,0.0001178,2]
[352210189,1738998668846,-180.346694,0.0001178,2]
[352210190,1738998668856,-803.77,0.0001178,2]
[352210191,1738998668865,-500.0,0.0001178,2]
[352210192,1738998668874,-500.0,0.0001178,2]
[352210193,1738998668883,-500.0,0.0001178,2]
[352210194,1738998668893,-500.0,0.0001178,2]
[352210195,1738998668902,-1091.39,0.0001178,2]
[352210196,1738998668911,-1121.44,0.0001178,2]
[352210197,1738998668920,-500.0,0.0001178,2]
[352210198,1738998668929,-500.0,0.0001178,2]
[352210199,1738998668939,-500.0,0.0001178,2]
[352210200,1738998668948,-500.0,0.0001178,2]
[352210201,1738998668957,-1606.0,0.0001178,2]
[352210202,1738998668967,-2838.41,0.0001178,2]
[352210203,1738998668976,-500.0,0.0001178,2]
[352210204,1738998668986,-695.43,0.0001178,2]
[352210205,1738998668995,-3904.75,0.0001178,2]
[352210206,1738998669004,-500.0,0.0001178,2]
[352210207,1738998669014,-1543.63,0.0001178,2]
[352210208,1738998669023,-500.0,0.0001178,2]
[352210209,1738998669033,-500.0,0.0001178,2]
[352210210,1738998669132,-1147.48,0.0001178,2]
[352210211,1738998669142,-679.14,0.0001178,2]
[352210212,1738998669151,-500.0,0.0001178,2]
[352210213,1738998669160,-500.0,0.0001178,2]
[352210214,1738998669169,-823.63,0.0001178,2]
[352210215,1738998669179,-500.0,0.0001178,2]
[352210216,1738998669190,-500.0,0.0001178,2]
[352210217,1738998669199,-500.0,0.0001178,2]
[352210218,1738998669209,-561.44797022,0.0001178,2]
[352210219,1738998669218,-500.0,0.0001178,2]
[352210220,1738998669228,-519.12,0.0001178,2]
[352210221,1738998669237,-500.0,0.0001178,2]
[352210222,1738998669246,-1168.36,0.0001178,2]
[352210223,1738998669256,-5000.0,0.00011852,2]
[352210224,1738998669265,-500.0,0.00011875,2]
[352210225,1738998669274,-2400.0,0.00011875,2]
[352210226,1738998669285,-1000.0,0.00011887,2]
[352210227,1738998669294,-220362.5715301,0.000119,2]
[352210228,1738998669303,-1260.88313752,0.000119,2]
[352210229,1738998669313,-151.0,0.000119,2]
[352210230,1738998669322,-151.0,0.000119,2]
[352210231,1738998669332,-151.0,0.000119,2]
[352210232,1738998669341,-151.0,0.000119,2]
[352210233,1738998669351,-151.0,0.000119,2]
[352210234,1738998669360,-151.0,0.000119,2]
[352210235,1738998669370,-151.0,0.000119,2]
[352210236,1738998669379,-151.0,0.000119,2]
[352210237,1738998669388,-151.0,0.000119,2]
[352210238,1738998669397,-151.0,0.000119,2]
[352210239,1738998669408,-151.0,0.000119,2]
[352210240,1738998669417,-151.0,0.000119,2]
[352210241,1738998669426,-151.0,0.000119,2]
[352210242,1738998669436,-318.736898,0.000119,2]
[352210243,1738998669445,-318.736898,0.000119,2]
[352210244,1738998669455,-151.0,0.000119,2]
[352210245,1738998669465,-155.276126,0.000119,2]
[352210246,1738998669474,-151.0,0.000119,2]
[352210247,1738998669484,-151.0,0.000119,2]
[352210248,1738998669494,-258.179318,0.000119,2]
[352210249,1738998669503,-258.179318,0.000119,2]
[352210250,1738998669513,-155.689156,0.000119,2]
[352210251,1738998669522,-155.689156,0.000119,2]
[352210252,1738998669532,-191.717064,0.000119,2]
[352210253,1738998669541,-151.0,0.000119,2]
[352210254,1738998669551,-191.717064,0.000119,2]
[352210255,1738998669563,-151.0,0.000119,2]
[352210256,1738998669572,-216.220034,0.000119,2]
[352210257,1738998669581,-216.220034,0.000119,2]
[352210258,1738998669592,-432.08392,0.000119,2]
[352210259,1738998669601,-432.08392,0.000119,2]
[352210260,1738998669610,-151.0,0.000119,2]
[352210261,1738998669620,-355.503338,0.000119,2]
[352210262,1738998669630,-275.534378,0.000119,2]
[352210263,1738998669640,-355.503338,0.000119,2]
[352210264,1738998669651,-443.759213,0.000119,2]
[352210265,1738998669660,-443.759213,0.000119,2]
[352210266,1738998669670,-180.346694,0.000119,2]
[352210267,1738998669679,-180.346694,0.000119,2]
[352210268,1738998669693,-500.0,0.00011917,2]
[352210269,1738998669703,-150.12,0.00011917,2]
[352210270,1738998669713,-150.12,0.00011917,2]
[352210271,1738998669722,-750.0,0.00011917,2]
[352210272,1738998669732,-250.31788774,0.00011917,2]
[352210273,1738998669742,-500.0,0.00011917,2]
[352210274,1738998669752,-150.12,0.00011917,2]
[352210275,1738998669763,-150.12,0.00011917,2]
[352210276,1738998669772,-633.43614327,0.00011917,2]
[352210277,1738998669782,-509.65,0.00011917,2]
[352210278,1738998669791,-500.0,0.00011917,2]
[352210279,1738998669801,-500.0,0.00011917,2]
[352210280,1738998669811,-500.0,0.00011917,2]
[352210281,1738998669821,-545.88,0.00011917,2]
[352210282,1738998669831,-517.42,0.00011917,2]
[352210283,1738998669841,-500.0,0.00011917,2]
[352210284,1738998669852,-500.0,0.00011917,2]
[352210285,1738998669862,-500.0,0.00011917,2]
[352210286,1738998669873,-500.0,0.00011917,2]
[352210287,1738998669883,-500.0,0.00011917,2]
[352210288,1738998669893,-500.0,0.00011917,2]
[352210289,1738998669902,-500.0,0.00011917,2]
[352210290,1738998669912,-179.56919123,0.00011917,2]
[352210291,1738998669922,-500.0,0.00011917,2]
[352210292,1738998669934,-500.0,0.00011917,2]
[352210293,1738998669943,-500.0,0.00011917,2]
[352210294,1738998669953,-701.06,0.00011917,2]
[352210295,1738998669963,-565.21,0.00011917,2]
[352210296,1738998669972,-588.54,0.00011917,2]
[352210297,1738998669982,-500.0,0.00011917,2]
[352210298,1738998669992,-322.48958285,0.00011917,2]
[352210299,1738998670002,-500.0,0.00011917,2]
[352210300,1738998670012,-500.0,0.00011917,2]
[352210301,1738998670022,-500.0,0.00011917,2]
[352210302,1738998670033,-500.0,0.00011917,2]
[352210303,1738998670043,-500.0,0.00011917,2]
[352210304,1738998670053,-500.0,0.00011917,2]
[352210305,1738998670062,-500.0,0.00011917,2]
[352210306,1738998670072,-500.0,0.00011917,2]
[352210307,1738998670081,-889.61,0.00011917,2]
[352210308,1738998670090,-500.0,0.00011917,2]
[352210309,1738998670100,-989.96,0.00011917,2]
[352210310,1738998670110,-221.98709974,0.00011917,2]
[352210311,1738998670119,-152.80951529,0.00011917,2]
[352210312,1738998670130,-500.0,0.00011917,2]
[352210313,1738998670140,-500.0,0.00011917,2]
[352210314,1738998670150,-500.0,0.00011917,2]
[352210315,1738998670159,-650.2,0.00011917,2]
[352210316,1738998670169,-192.56593181,0.00011917,2]
[352210317,1738998670179,-500.0,0.00011917,2]
[352210318,1738998670190,-596.97,0.00011917,2]
[352210319,1738998670200,-327.0341796,0.00011917,2]
[352210320,1738998670210,-786.31,0.00011917,2]
[352210321,1738998670220,-500.0,0.00011917,2]
[352210322,1738998670229,-500.0,0.00011917,2]
[352210323,1738998670238,-500.0,0.00011917,2]
[352210324,1738998670248,-500.0,0.00011917,2]
[352210325,1738998670257,-500.0,0.00011917,2]
[352210326,1738998670266,-1060.7,0.00011917,2]
[352210327,1738998670275,-500.0,0.00011917,2]
[352210328,1738998670285,-500.0,0.00011917,2]
[352210329,1738998670294,-500.0,0.00011917,2]
[352210330,1738998670303,-500.0,0.00011917,2]
[352210331,1738998670313,-500.0,0.00011917,2]
[352210332,1738998670322,-1453.12,0.00011917,2]
[352210333,1738998670331,-1481.07,0.00011917,2]
[352210334,1738998670340,-500.0,0.00011917,2]
[352210335,1738998670350,-500.0,0.00011917,2]
[352210336,1738998670360,-671.1,0.00011917,2]
[352210337,1738998670369,-500.0,0.00011917,2]
[352210338,1738998670379,-500.0,0.00011917,2]
[352210339,1738998670388,-560.96,0.00011917,2]
[352210340,1738998670398,-3685.92,0.00011917,2]
[352210341,1738998670407,-836.94,0.00011917,2]
[352210342,1738998670416,-513.56787768,0.00011917,2]
[352210343,1738998670425,-711.76,0.00011917,2]
[352210344,1738998670435,-500.0,0.00011917,2]
[352210345,1738998670444,-321.07983664,0.00011917,2]
[352210346,1738998670454,-500.0,0.00011917,2]
[352210347,1738998670464,-1198.7,0.00011917,2]
[352210348,1738998670473,-500.0,0.00011917,2]
[352210349,1738998670483,-763.76,0.00011917,2]
[352210350,1738998670492,-500.0,0.00011917,2]
[352210351,1738998670502,-500.0,0.00011917,2]
[352210352,1738998670512,-988.05,0.00011917,2]
[352210353,1738998670522,-500.0,0.00011917,2]
[352210354,1738998670532,-500.0,0.00011917,2]
[352210355,1738998670542,-500.0,0.00011917,2]
[352210356,1738998670554,-1433.84,0.00011917,2]
[352210357,1738998670566,-500.0,0.00011917,2]
[352210358,1738998670668,-1643.7,0.00011917,2]
[352210359,1738998670678,-500.0,0.00011917,2]
[352210360,1738998670690,-3044.6,0.00011917,2]
[352210361,1738998670700,-500.0,0.00011917,2]
[352210362,1738998670710,-531.99,0.00011917,2]
[352210363,1738998670719,-500.0,0.00011917,2]
[352210364,1738998670729,-765.74,0.00011917,2]
[352210365,1738998670738,-500.0,0.00011917,2]
[352210366,1738998670747,-500.0,0.00011917,2]
[352210367,1738998670757,-262.71037777,0.00011917,2]
[352210368,1738998670766,-715.96,0.00011917,2]
[352210369,1738998670776,-348.72,0.00011917,2]
[352210370,1738998670786,-2515.96,0.00011917,2]
[352210371,1738998670795,-719.68,0.00011917,2]
[352210372,1738998670804,-500.0,0.00011917,2]
[352210373,1738998670814,-500.0,0.00011917,2]
[352210374,1738998670824,-9981.38,0.00011917,2]
[352210375,1738998670833,-500.0,0.00011917,2]
[352210376,1738998670843,-500.0,0.00011917,2]
[352210377,1738998670853,-1315.18,0.00011917,2]
[352210378,1738998670862,-500.0,0.00011917,2]
[352210379,1738998670872,-1179.31,0.00011917,2]
[352210380,1738998670883,-660.77,0.00011917,2]
[352210381,1738998670893,-2961.48,0.00011917,2]
[352210382,1738998670902,-503.89976115,0.00011917,2]
[352210383,1738998670912,-357.85706611,0.00011917,2]
[352210384,1738998670922,-500.0,0.00011917,2]
[352210385,1738998670932,-500.0,0.00011917,2]
[352210386,1738998670941,-1189.1,0.00011917,2]
[352210387,1738998670951,-2548.81,0.00011917,2]
[352210388,1738998670961,-500.0,0.00011917,2]
[352210389,1738998670970,-48466.56,0.00011917,2]
[352210390,1738998670980,-3739.97,0.00011917,2]
[352210391,1738998670989,-500.0,0.00011917,2]
[352210392,1738998670998,-500.0,0.00011917,2]
[352210393,1738998671008,-631.77,0.00011917,2]
[352210394,1738998671018,-276.9602839,0.00011917,2]
[352210395,1738998671028,-1998.71,0.00011917,2]
[352210396,1738998671037,-500.0,0.00011917,2]
[352210397,1738998671047,-500.0,0.00011917,2]
[352210398,1738998671057,-517.92,0.00011917,2]
[352210399,1738998671066,-500.0,0.00011917,2]
[352210400,1738998671077,-500.0,0.00011917,2]
[352210401,1738998671087,-592.56,0.00011917,2]
[352210402,1738998671096,-1597.12,0.00011917,2]
[352210403,1738998671106,-1175.25,0.00011917,2]
[352210404,1738998671115,-500.0,0.00011917,2]
[352210405,1738998671125,-500.0,0.00011917,2]
[352210406,1738998671135,-14657.02,0.00011917,2]
[352210407,1738998671145,-3257.55,0.00011917,2]
[352210408,1738998671155,-500.0,0.00011917,2]
[352210409,1738998671164,-500.0,0.00011917,2]
[352210410,1738998671174,-500.0,0.00011917,2]
[352210411,1738998671184,-500.0,0.00011917,2]
[352210412,1738998671194,-500.0,0.00011917,2]
[352210413,1738998671204,-500.0,0.00011917,2]
[352210414,1738998671214,-500.0,0.00011917,2]
[352210415,1738998671223,-1592.16,0.00011917,2]
[352210416,1738998671233,-2064.54,0.00011917,2]
[352210417,1738998671243,-981.26,0.00011917,2]
[352210418,1738998671253,-796.91,0.00011917,2]
[352210419,1738998671263,-1457.93,0.00011917,2]
[352210420,1738998671272,-500.0,0.00011917,2]
[352210421,1738998671282,-177.59845825,0.00011917,2]
[352210422,1738998671291,-500.0,0.00011917,2]
[352210423,1738998671301,-328.1730189,0.00011917,2]
[352210424,1738998671310,-2789.96,0.00011917,2]
[352210425,1738998671320,-500.0,0.00011917,2]
[352210426,1738998671329,-6219.57,0.00011917,2]
[352210427,1738998671350,-803.77,0.00011917,2]
[352210428,1738998671369,-500.0,0.00011917,2]
[352210429,1738998671390,-500.0,0.00011917,2]
[352210430,1738998671410,-500.0,0.00011917,2]
[352210431,1738998671431,-500.0,0.00011917,2]
[352210432,1738998671450,-1091.39,0.00011917,2]
[352210433,1738998671469,-1121.44,0.00011917,2]
[352210434,1738998671484,-500.0,0.00011917,2]
[352210435,1738998671504,-500.0,0.00011917,2]
[352210436,1738998671526,-1606.0,0.00011917,2]
[352210437,1738998671543,-2838.41,0.00011917,2]
[352210438,1738998671562,-500.0,0.00011917,2]
[352210439,1738998671581,-695.43,0.00011917,2]
[352210440,1738998671596,-3904.75,0.00011917,2]
[352210441,1738998671612,-500.0,0.00011917,2]
[352210442,1738998671627,-1543.63,0.00011917,2]
[352210443,1738998671643,-500.0,0.00011917,2]
[352210444,1738998671658,-500.0,0.00011917,2]
[352210445,1738998671673,-1147.48,0.00011917,2]
[352210446,1738998671690,-679.14,0.00011917,2]
[352210447,1738998671706,-500.0,0.00011917,2]
[352210448,1738998671721,-500.0,0.00011917,2]
[352210449,1738998671736,-823.63,0.00011917,2]
[352210450,1738998671752,-360.08,0.00011917,2]
[352210451,1738998671766,-500.0,0.00011917,2]
[352210452,1738998671782,-535.46,0.00011917,2]